Cogmind - Beta 12 @@@ ROGUE MODE // 2023.05.15 @ 23:22:56 Player: Mr Goldstein Result: Destroyed by G-47 Trooper with Particle Gun Performance ------------- Evolutions (3) 1500 Regions Visited (6) 1200 Robots Destroyed (2) 10 Value Destroyed (54) 54 Prototype IDs (1) 20 Alien Tech Used (0) 0 Bonus (834) 834 TOTAL SCORE: 3618 Bonus ------- Pacifist 834 Cogmind --------- Core Integrity 0/700 Matter 220/300 Energy 98/100 System Corruption 0% Temperature Cool (9) Movement Core (50) Location -7/Lower Caves Parts ------- > --- POWER (1) -------- (None) > --- PROPULSION (2) --- (None) > --- UTILITY (8) ------ Corruption Screen Corruption Screen > --- WEAPON (2) ------- (None) > --- INVENTORY (5) ---- Medium Armor Plating Heavy Armor Plating Peak State ------------ > --- POWER ------------ (None) > --- PROPULSION ------- (None) > --- UTILITY ---------- Corruption Screen Corruption Screen Corruption Screen Corruption Screen > --- WEAPON ----------- (None) > --- INVENTORY -------- Medium Armor Plating Heavy Armor Plating Rocket Launcher [Rating: 17] Favorites ----------- Power None Propulsion None Utility Corruption Screen Processor Corruption Screen Hackware System Shield Protection Core Shielding Weapon Rocket Launcher Launcher Rocket Launcher Build | -11 -10 -10 -9 -8 -7 -7 ------- Run | Jun Mat Min Mat Mat Fac Low Slots Evolved 6 | . . . 2 2 2 . Power . | . . . . . . . Propulsion . | . . . . . . . Utility 6 | . . . 2 2 2 . Weapon . | . . . . . . . Parts Attached 9 | . . 1 . 6 1 1 Power . | . . . . . . . Engine . | . . . . . . . Core . | . . . . . . . Reactor . | . . . . . . . Propulsion . | . . . . . . . Treads . | . . . . . . . Leg . | . . . . . . . Wheel . | . . . . . . . Hover . | . . . . . . . Flight . | . . . . . . . Utility 7 | . . 1 . 5 1 . Device . | . . . . . . . Storage . | . . . . . . . Processor 4 | . . . . 4 . . Hackware 1 | . . . . . 1 . Protection 2 | . . 1 . 1 . . Artifact . | . . . . . . . Weapon 2 | . . . . 1 . 1 Energy Gun . | . . . . . . . Energy Cannon . | . . . . . . . Ballistic Gun . | . . . . . . . Ballistic Cannon . | . . . . . . . Launcher 2 | . . . . 1 . 1 Special Weapon . | . . . . . . . Impact Weapon . | . . . . . . . Slashing Weapon . | . . . . . . . Piercing Weapon . | . . . . . . . Special Melee Weapon . | . . . . . . . Unidentified Prototypes 1 | . . . . 1 . . Parts Lost 5 | . . . . 1 2 2 Power . | . . . . . . . Propulsion . | . . . . . . . Utility 4 | . . . . 1 2 1 Weapon 1 | . . . . . . 1 Highest Loss Streak 2 | . . . . 1 1 2 To Critical Strikes . | . . . . . . . Average Slot Usage (%) 17 | . . . 11 9 26 23 Processor 11 | . . . . 1 24 15 Hackware 2 | . . . . . 2 6 Protection 2 | . . . 11 7 . . Naked Turns 53 | . 22 30 . 1 . . Heaviest Build 1 | . . 1 1 1 . . Greatest Support 3 | 3 3 3 3 3 3 3 Greatest Overweight (x) . | . . . . . . . Average Overweight (x) . | . . . . . . . Largest Inventory Capacity 5 | 5 5 5 5 5 5 5 Average Capacity 5 | 5 5 5 5 5 5 5 Most Carried 4 | . . . 2 4 4 4 Average Carried 2 | . . . 1 3 4 3 Final Capacity 5 | 5 5 5 5 5 5 5 Final Carried 4 | . . . 2 4 4 3 Class Distribution -------------------- 100% | Mutant Dominant Class ---------------- Mutant | -10/Materials Mutant | -10/Mines Mutant | -9/Materials Mutant | -8/Materials Mutant | -7/Factory Mutant | -7/Lower Caves Resources | -11 -10 -10 -9 -8 -7 -7 ----------- Run | Jun Mat Min Mat Mat Fac Low Matter Collected 211 | 200 . 11 . . . . Remotely . | . . . . . . . Salvage Created 19 | . . . . . . 19 Parts 3 | . . . . . . 3 Haulers Intercepted . | . . . . . . . Recyclers Shooed . | . . . . . . . Parts Field Recycled . | . . . . . . . Retrieved Matter . | . . . . . . . Parts Self-Destructed 1 | . . . . . . 1 Prevented 1 | . . . . . . 1 Kills | -11 -10 -10 -9 -8 -7 -7 ------- Run | Jun Mat Min Mat Mat Fac Low Combat Hostiles Destroyed 2 | . . . . . . 2 AOE 2 | . . . . . . 2 Classes Destroyed 1 | . . . . . . 1 Swarmer 2 | . . . . . . 2 Best Kill Streak 2 | . . . . . . 2 Combat Bots Only 2 | . . . . . . 2 Max Kills in Single Turn 1 | . . . . . . 1 Gunslinging . | . . . . . . . Exploded 1 | . . . . . . 1 Melee . | . . . . . . . Uniques/NPCs Destroyed . | . . . . . . . Combat | -11 -10 -10 -9 -8 -7 -7 -------- Run | Jun Mat Min Mat Mat Fac Low Damage Taken 1083 | . . 2 116 144 450 371 Core 912 | . . 2 95 115 416 284 Absorbed by Shields . | . . . . . . . Redirected to Shielding 36 | . . . 21 15 . . Core Remaining (%) 88 | 100 . 99 76 79 . . Volleys Fired 3 | . . . . . . 3 Largest 1 | . . . . . . 1 Hottest 33 | . . . . . . 33 Shots Fired 3 | . . . . . . 3 Gun . | . . . . . . . Cannon . | . . . . . . . Launcher 3 | . . . . . . 3 Special . | . . . . . . . Kinetic . | . . . . . . . Thermal . | . . . . . . . Explosive 3 | . . . . . . 3 Electromagnetic . | . . . . . . . Robot Hit Streak . | . . . . . . . Robot Miss Streak 3 | . . . . . . 3 Penetration Max . | . . . . . . . Secondary Targets . | . . . . . . . Shots Hit Robots . | . . . . . . . Core Hits 5 | . . . . . . 5 Critical Kills . | . . . . . . . Critical Parts Destroyed . | . . . . . . . Critical Strikes . | . . . . . . . Melee Attacks . | . . . . . . . Impact . | . . . . . . . Slashing . | . . . . . . . Piercing . | . . . . . . . Sneak Attacks . | . . . . . . . Combat Hostiles . | . . . . . . . Follow-up Attacks . | . . . . . . . Damage Inflicted 210 | . . 5 . . 12 193 Guns . | . . . . . . . Cannons . | . . . . . . . Explosions 193 | . . . . . . 193 Melee . | . . . . . . . Ramming 17 | . . 5 . . 12 . Kinetic . | . . . . . . . Thermal . | . . . . . . . Explosive 193 | . . . . . . 193 Electromagnetic . | . . . . . . . Impact . | . . . . . . . Slashing . | . . . . . . . Piercing . | . . . . . . . Highest Corruption 2 | . 2 2 . 2 . . Average Corruption 2 | . 2 2 . 2 . . Corruption Purged . | . . . . . . . Corruption Blocked . | . . . . . . . Effects 3 | . 1 . . 2 . . Matter Fused 1 | . 1 . . . . . Heat Flow Errors 1 | . . . . 1 . . Data Loss (minor) 1 | . . . . 1 . . Overload Shots . | . . . . . . . Overflow Damage 11 | . . . . . . 11 Projectiles . | . . . . . . . Explosions 11 | . . . . . . 11 Melee . | . . . . . . . Knockbacks . | . . . . . . . Impact . | . . . . . . . Kinetic . | . . . . . . . Secondary . | . . . . . . . Self-Inflicted Damage 56 | . . 2 . . 6 48 Shots 1 | . . . . . . 1 Rammed 3 | . . 1 . . 2 . Targets Rammed 3 | . . 1 . . 2 . Kicked . | . . . . . . . Crushed . | . . . . . . . Highest Temperature 197 | . . . . 197 . . Average Temperature 131 | . . . . 131 . . Received Heat Transfer 300 | . . . 27 81 147 45 Siege Activations . | . . . . . . . Robots Corrupted . | . . . . . . . Combat Hostiles . | . . . . . . . Parts Fried . | . . . . . . . Impact Corruptions . | . . . . . . . Robots Melted . | . . . . . . . Combat Hostiles . | . . . . . . . Parts Melted . | . . . . . . . Heat Transferred . | . . . . . . . Parts Sabotaged . | . . . . . . . Parts Stolen . | . . . . . . . Parts Stripped . | . . . . . . . Power Chain Reactions . | . . . . . . . Missiles Intercepted . | . . . . . . . Alert | -11 -10 -10 -9 -8 -7 -7 ------- Run | Jun Mat Min Mat Mat Fac Low Peak Influence 139 | . 15 5 76 104 139 . Initial 46 | . . 5 1 31 46 . Average 46 | . 10 5 35 59 62 . Maximum Alert Level . | . . . . . . . Low Security (%) 100 | 100 100 100 100 100 100 . Level 1 . | . . . . . . . Level 2 . | . . . . . . . Level 3 . | . . . . . . . Level 4 . | . . . . . . . Level 5 . | . . . . . . . High Security . | . . . . . . . Max Security . | . . . . . . . Squads Dispatched 4 | . . . 1 1 2 . Investigation 3 | . . . 1 1 1 . Extermination . | . . . . . . . Reinforcement 1 | . . . . . 1 . Assault . | . . . . . . . Garrison . | . . . . . . . Intercept . | . . . . . . . Searches Triggered . | . . . . . . . Construction Impeded 1 | . . . . . 1 . Haulers Reinforced . | . . . . . . . Active Scanning Responses . | . . . . . . . Cargo Convoy Interrupts . | . . . . . . . Stealth | -11 -10 -10 -9 -8 -7 -7 --------- Run | Jun Mat Min Mat Mat Fac Low Distress Signals 1 | . . . . . 1 . Communications Jammed . | . . . . . . . Distress Signals . | . . . . . . . Times Spotted 48 | . 1 2 8 8 11 18 Peak Tracking Total 10 | . 1 2 8 10 9 10 Tactical Retreats 6 | . . . . 1 2 3 Traps | -11 -10 -10 -9 -8 -7 -7 ------- Run | Jun Mat Min Mat Mat Fac Low Traps Triggered 4 | . 1 . . 2 1 . Indirectly . | . . . . . . . Trap Hack Attempts . | . . . . . . . Triggered . | . . . . . . . Disarmed . | . . . . . . . Reprogrammed . | . . . . . . . Reused . | . . . . . . . Traps Extracted . | . . . . . . . Installed . | . . . . . . . Triggered 1 | . . . . . . 1 Machines | -11 -10 -10 -9 -8 -7 -7 ---------- Run | Jun Mat Min Mat Mat Fac Low Machines Disabled . | . . . . . . . Max in Single Turn . | . . . . . . . Machines Repaired . | . . . . . . . Machines Sabotaged . | . . . . . . . Overloaded Fab Kills . | . . . . . . . Hacking | -11 -10 -10 -9 -8 -7 -7 --------- Run | Jun Mat Min Mat Mat Fac Low Machines Accessed 3 | . . . 1 1 1 . Terminals 3 | . . . 1 1 1 . Fabricators . | . . . . . . . Repair Stations . | . . . . . . . Recycling Units . | . . . . . . . Scanalyzers . | . . . . . . . Garrison Access . | . . . . . . . Total Hacks 8 | . . . 4 1 3 . Successful 2 | . . . . 1 1 . Failed 6 | . . . 4 . 2 . Catastrophic 3 | . . . 1 . 2 . Database Lockouts . | . . . . . . . Manual 8 | . . . 4 1 3 . Terminals 8 | . . . 4 1 3 . Fabricators . | . . . . . . . Repair Stations . | . . . . . . . Recycling Units . | . . . . . . . Scanalyzers . | . . . . . . . Garrison Access . | . . . . . . . Terminal Hacks 2 | . . . . 1 1 . Branch Access Points 2 | . . . . 1 1 . Fabricator Hacks . | . . . . . . . Repair Station Hacks . | . . . . . . . Recycling Unit Hacks . | . . . . . . . Scanalyzer . | . . . . . . . Garrison Access Hacks . | . . . . . . . Unauthorized Hacks . | . . . . . . . Terminals . | . . . . . . . Fabricators . | . . . . . . . Repair Stations . | . . . . . . . Recycling Units . | . . . . . . . Scanalyzers . | . . . . . . . Garrison Access . | . . . . . . . Data Cores Recovered . | . . . . . . . Used . | . . . . . . . Hacking Detections 2 | . . . 1 . 1 . Full Trace Events 2 | . . . 1 . 1 . Feedback Events . | . . . . . . . Feedback Blocked . | . . . . . . . Robot Schematics Acquired . | . . . . . . . Robots Built . | . . . . . . . Authchips . | . . . . . . . Time . | . . . . . . . Total Robot Build Rating . | . . . . . . . Part Schematics Acquired . | . . . . . . . Parts Built . | . . . . . . . Authchips . | . . . . . . . Time . | . . . . . . . Total Part Build Rating . | . . . . . . . Parts Repaired . | . . . . . . . Time . | . . . . . . . Parts Recycled . | . . . . . . . Recycled Matter . | . . . . . . . Retrieved Matter . | . . . . . . . Retrieved Components . | . . . . . . . Parts Scanalyzed . | . . . . . . . Part Schematics Acquired . | . . . . . . . Parts Damaged . | . . . . . . . Bothacking | -11 -10 -10 -9 -8 -7 -7 ------------ Run | Jun Mat Min Mat Mat Fac Low Used RIF Installer . | . . . . . . . Robots Hacked . | . . . . . . . Non-combat . | . . . . . . . Combat . | . . . . . . . Robot Hacks Applied . | . . . . . . . Relay Couplers Released . | . . . . . . . Fabnet Peak Effective % . | . . . . . . . Robots Rewired . | . . . . . . . Allies Hacked . | . . . . . . . Hacks Repelled . | . . . . . . . Allies | -11 -10 -10 -9 -8 -7 -7 -------- Run | Jun Mat Min Mat Mat Fac Low Total Allies . | . . . . . . . Largest Group . | . . . . . . . Highest-Rated Group . | . . . . . . . Highest-Rated Ally . | . . . . . . . Total Orders . | . . . . . . . Ally Attacks . | . . . . . . . Total Damage . | . . . . . . . Kills . | . . . . . . . Allies Corrupted . | . . . . . . . Allies Melted . | . . . . . . . Intel | -11 -10 -10 -9 -8 -7 -7 ------- Run | Jun Mat Min Mat Mat Fac Low Robot Analysis Total . | . . . . . . . Derelict Logs Recovered . | . . . . . . . Drone Launches . | . . . . . . . Drone Recoveries . | . . . . . . . Exploration | -11 -10 -10 -9 -8 -7 -7 ------------- Run | Jun Mat Min Mat Mat Fac Low Turns Passed 430 | 9 22 34 48 84 138 95 Spaces Moved 806 | 19 43 62 91 147 268 176 Core 806 | 19 43 62 91 147 268 176 Treads . | . . . . . . . Legs . | . . . . . . . Wheels . | . . . . . . . Hover . | . . . . . . . Flight . | . . . . . . . Fastest Speed 50 | 50 50 50 50 50 50 50 Average Speed 50 | 50 50 50 50 50 50 50 Slowest Speed 50 | 50 50 50 50 50 50 50 Overloaded Moves . | . . . . . . . Propulsion Burnouts . | . . . . . . . Robots Hopped . | . . . . . . . Cave-ins Triggered . | . . . . . . . Exploration Rate (%) 18 | 3 13 18 18 18 9 47 Regions Visited 6 Branch Regions 2 Pre-discovered Areas . | . . . . . . . Known Exits Taken 1 | . . . . . 1 . Unknown Exits Taken 5 | 1 1 1 1 1 . . Scrap Searched 1 | . . 1 . . . . Spaces Dug . | . . . . . . . Terrain Destroyed 23 | . . . . . . 23 Melee . | . . . . . . . Projectile . | . . . . . . . AOE 23 | . . . . . . 23 Terrain Rammed . | . . . . . . . Walls Destroyed . | . . . . . . . Machines Disabled . | . . . . . . . Actions | -11 -10 -10 -9 -8 -7 -7 --------- Run | Jun Mat Min Mat Mat Fac Low Total 819 | 18 42 63 92 154 270 180 Wait . | . . . . . . . Move 800 | 18 42 61 90 146 267 176 Hop . | . . . . . . . Pick Up 2 | . . . 2 . . . Fast Attach 8 | . . 1 . 6 1 . Attach 1 | . . . . . . 1 Detach 1 | . . . . 1 . . Swap . | . . . . . . . Drop 1 | . . . . 1 . . Fire 3 | . . . . . . 3 Melee . | . . . . . . . Ram 3 | . . 1 . . 2 . Kick . | . . . . . . . Crush . | . . . . . . . Escape Stasis . | . . . . . . . Rewire . | . . . . . . . Trap . | . . . . . . . Miscellaneous . | . . . . . . . Route ------- -11/Junkyard -10/Materials -10/Mines -9/Materials -8/Materials -7/Factory (discovered 2 exits: *Low x2) -7/Lower Caves History --------- Turn | Location | Event 2 | -11/Junkyard | Discovered new exit (range 16) 10 | -11/Junkyard | Entered Materials 27 | -10/Materials | Discovered new exit (range 9) 32 | -10/Materials | Entered Mines 35 | -10/Mines | Assembled infested the area 40 | -10/Mines | Met a Derelict bent on vengeance 57 | -10/Mines | Discovered new exit (range 6) 66 | -10/Mines | Entered Materials 66 | -9/Materials | Evolved 2 slots: Utility x2 101 | -9/Materials | Discovered new exit (range 16) 114 | -9/Materials | Entered another Materials area 114 | -8/Materials | Evolved 2 slots: Utility x2 182 | -8/Materials | Discovered new exit (range 10) 198 | -8/Materials | Entered Factory 198 | -7/Factory | Evolved 2 slots: Utility x2 259 | -7/Factory | Identified exit to Lower Caves 320 | -7/Factory | Build established: Mutant 323 | -7/Factory | Core integrity fell below 50% 336 | -7/Factory | Entered Lower Caves 407 | -7/Lower Caves | Core integrity fell below 20% 430 | -7/Lower Caves | Attracted the attention of an 0b10 outpost 431 | -7/Lower Caves | Destroyed by G-47 Trooper with Particle Gun Last Messages --------------- 00288_ K-01 Serf collects debris. 00289_ G-47 Trooper destroyed. 00290_ T-07 Excavator is excavating. 00290_ R-06 Scavenger collects Aluminum Leg. 00299_ Acquired System Shield. 00304_ Knocked back. 00324_ Slammed into T-07 Excavator. 00328_ Corruption Screen destroyed. LOCATION=LOWER CAVES GOAL=ESCAPE 00406_ M-14 Sweeper reprogrammed Dirty Bomb Trap. 00410_ M-14 Sweeper extracted Dirty Bomb Trap. 00424_ S-27 Virus destroyed. 00426_ Destroyed Lgt. Nuclear Core. 00426_ S-27 Virus destroyed. 00428_ VTOL Module fries itself beyond repair. 00428_ System Shield destroyed. 00428_ Destroyed System Shield. 00430_ Y-64 Sentinel: "DETECTED UNIDENTIFIED DERELICT." 00430_ Rocket Launcher destroyed. Map ----- +----------------------------------------------------+ | ?????????????????????????????????????????????????? | | ?????????????????????????????????????????????????? | | ?????????????????????????????????????????????????? | | ?????????????????????????????????????????????????? | | ?????????????????????????????????????????????????? | | ?????????????????????????????????????????????????? | | ?????????????????????????????????????????????????? | | ?????????????????????????????????????????????????? | | ?????????????????????????????????????????????????? | | ?????????????????????????????????????????????????? | | ?????????????????????????????????????????????????? | | ???????????????????????????????????????????###???? | | ??????????????????????????????????????????? ???? | | ?????????????????????????#????????????????? #???? | | ????????????????????????? ????????? ????## #???? | | ?????????????????###????? ???????? ??? #???? | | ?????????????????#"""???# #?????? ??? ###?? | | ?????????????????# l???# ####?? ????? ##? | | ?????????????????? l??l ## ### ?????# #? | | ?????????????????###gg###g## ###????# #?? | | ?????????????????#g * # ## #???## #??? | | ?????????????????#l % ##### #???? | | ???????????????# ## [Y ## #???? | | ???????????????# % #????? | | ??????????????????### s g* ###????? | | ????????????????????## @ #??????? | | ?????????????????????## ##### ##### ##?????? | | ??????????????????????# ##???# #???# ##????? | | ??????????????????????###?????# #???# ##???? | | ??????????????????????????????#####???# ##??? | | ??????????????????????????????????????# #??? | | ??????????????????????????????????????# ##?? | | ????????????????????????????????????### ##? | | ???????????????????????????????????# ## | | ???????????????????????????????????# ### | | ???????????????????????????????????# ##?## | | ???????????????????????????????????# ##???# | | ??????????????????????????????????# #????## | | ?????????????????????????????????# ???### | | ????????????????????????????????# ##### | | ??????????????????????????????? #?# | | ??????????????????????????????? #??# | | ??????????????????????????????? #???# | | ???????????????????????????????? ????# | | ???????????????????????????????????????## ^ | | ????????????????????????????????????????## "## | | ??????????????????????????????????????## # ## "## | | ??????????????????????????????????????# # | | ??????????????????????????????????????## | | ???????????????????????????????????????# %=% | +----------------------------------------------------+ Best States ------------- Heat Dissipation 34 Energy Generation 5 Energy Capacity 100 Matter Stores 300 Matter Capacity 300 Sight Range 16 Terrain Scan Density 10 Corruption Block 25 Core Shielding 20 Evasion (%) 50 Defensive Hacking 10 Item Schematics ----------------- None Robot Schematics ------------------ None Fabricated ------------ Nothing Alien Tech Used ----------------- None Achievements -------------- None Challenges ------------ None Game ------ Seed NeutronRiotCarapace Manual? 0 Play Time 00:05:23 Cumulative 214.7 hours Start 2023.05.15 @ 23:18:28 End 2023.05.15 @ 23:22:56 Sessions 1 Manual Loads 0 Difficulty Rogue Special Mode None Game No. 635 Rogue 635 Adventurer 0 Explorer 0 Win Type - Total 9 Types 7/0/1/1/0/0/0/0/0 Lore% 82 Gallery% 80 Achievement% 71 Wizard Run 0 Options --------- ASCII 0 Keyboard 0 Movement Numpad Keybinds 0 Fullscreen 1 Font 16/SmallcapsGlow Map View 75x55 Tactical HUD 1 Map Filters NONE Filters NONE Steam 1 RUN: dcdb9f4f-11ad-4a0e-8443-c0654895123b